fUST/lending_fUST_20240112
["ID","MTS","AMOUNT","RATE_DAILY","PERIOD"]
[311262631,1705001442831,-506.98,0.00030136,2]
[311262632,1705001442839,-500.0,0.00030136,2]
[311262633,1705001442848,-500.0,0.00030136,2]
[311262634,1705001442858,-500.0,0.00030136,2]
[311262635,1705001442867,-500.0,0.00030136,2]
[311262636,1705001442875,-500.0,0.00030136,2]
[311262637,1705001442884,-500.0,0.00030136,2]
[311262638,1705001442893,-356.88042739,0.00030136,2]
[311262639,1705001442903,-500.0,0.00030136,2]
[311262640,1705001442912,-506.6343606,0.00030136,2]
[311262641,1705001442921,-1998.36,0.00030136,2]
[311262642,1705001442930,-3250.53,0.00030136,2]
[311262643,1705001442940,-500.0,0.00030136,2]
[311262644,1705001442953,-500.0,0.00030136,2]
[311262645,1705001442962,-646.65,0.00030136,2]
[311262646,1705001442970,-500.0,0.00030136,2]
[311262647,1705001442980,-500.0,0.00030136,2]
[311262648,1705001442991,-911.91,0.00030136,2]
[311262649,1705001443000,-500.0,0.00030136,2]
[311262650,1705001443009,-500.0,0.00030136,2]
[311262651,1705001443018,-500.0,0.00030136,2]
[311262652,1705001443028,-1423.04,0.00030136,2]
[311262653,1705001443037,-500.0,0.00030136,2]
[311262654,1705001443046,-500.0,0.00030136,2]
[311262655,1705001443056,-576.25083322,0.00030136,2]
[311262656,1705001443065,-500.0,0.00030136,2]
[311262657,1705001443075,-503.69029425,0.00030136,2]
[311262658,1705001443084,-500.0,0.00030136,2]
[311262659,1705001443093,-6811.54,0.00030136,2]
[311262660,1705001443102,-500.0,0.00030136,2]
[311262661,1705001443111,-500.0,0.00030136,2]
[311262662,1705001443121,-500.0,0.00030136,2]
[311262663,1705001443130,-500.0,0.00030136,2]
[311262664,1705001443140,-500.0,0.00030136,2]
[311262665,1705001443149,-281.74517376,0.00030136,2]
[311262666,1705001443159,-500.0,0.00030136,2]
[311262667,1705001443168,-500.0,0.00030136,2]
[311262668,1705001443177,-500.0,0.00030136,2]
[311262670,1705001443187,-500.0,0.00030136,2]
[311262672,1705001443196,-500.0,0.00030136,2]
[311262676,1705001443205,-500.0,0.00030136,2]
[311262679,1705001443214,-500.55430526,0.00030136,2]
[311262681,1705001443223,-500.0,0.00030136,2]
[311262682,1705001443232,-500.0,0.00030136,2]
[311262684,1705001443241,-502.15,0.00030136,2]
[311262686,1705001443251,-500.0,0.00030136,2]
[311262689,1705001443260,-616.86,0.00030136,2]
[311262691,1705001443269,-500.0,0.00030136,2]
[311262693,1705001443278,-257.42195307,0.00030136,2]
[311262696,1705001443288,-500.0,0.00030136,2]
[311262698,1705001443297,-815.58,0.00030136,2]
[311262701,1705001443306,-503.56838718,0.00030136,2]
[311262702,1705001443315,-565.47,0.00030136,2]
[311262705,1705001443325,-1366.5,0.00030136,2]
[311262707,1705001443334,-510.03142022,0.00030136,2]
[311262709,1705001443343,-596.91,0.00030136,2]
[311262711,1705001443353,-500.0,0.00030136,2]
[311262713,1705001443362,-500.0,0.00030136,2]
[311262715,1705001443371,-500.0,0.00030136,2]
[311262717,1705001443380,-500.0,0.00030136,2]
[311262719,1705001443389,-500.0,0.00030136,2]
[311262720,1705001443398,-500.0,0.00030136,2]
[311262722,1705001443407,-502.011769,0.00030136,2]
[311262725,1705001443416,-560.66390144,0.00030136,2]
[311262727,1705001443426,-500.0,0.00030136,2]
[311262728,1705001443434,-500.0,0.00030136,2]
[311262731,1705001443444,-525.91,0.00030136,2]
[311262732,1705001443453,-500.0,0.00030136,2]
[311262735,1705001443462,-516.0,0.00030136,2]
[311262737,1705001443472,-507.08441608,0.00030136,2]
[311262739,1705001443481,-500.0,0.00030136,2]
[311262741,1705001443490,-500.9535878,0.00030136,2]
[311262742,1705001443499,-500.0,0.00030136,2]
[311262744,1705001443508,-500.0,0.00030136,2]
[311262746,1705001443517,-2092.2,0.00030136,2]
[311262748,1705001443526,-500.0,0.00030136,2]
[311262751,1705001443535,-500.0,0.00030136,2]
[311262752,1705001443544,-412.25216866,0.00030136,2]
[311262754,1705001443553,-500.0,0.00030136,2]
[311262757,1705001443562,-1151.69,0.00030136,2]
[311262759,1705001443571,-500.0,0.00030136,2]
[311262761,1705001443581,-501.07299609,0.00030136,2]
[311262763,1705001443590,-502.26759104,0.00030136,2]
[311262764,1705001443599,-154.09671267,0.00030178,7]
[311262765,1705001443608,-488.99507666,0.000302,3]
[311262766,1705001443617,-154.09671267,0.00030276,7]
[311262767,1705001443626,-183.814307,0.00030288,2]
[311262768,1705001443635,-234.853541,0.0003041,2]
[311262769,1705001443645,-210.809608,0.0003041,2]
[311262770,1705001443654,-151.12546,0.0003041,2]
[311262771,1705001443663,-173.184312,0.0003041,2]
[311262772,1705001443674,-173.184313,0.0003041,2]
[311262773,1705001443683,-387.976783,0.0003041,2]
[311262774,1705001443692,-235.111797,0.0003041,2]
[311262775,1705001443701,-658.75,0.0003041,2]
[311262776,1705001443710,-500.0,0.0003041,2]
[311262777,1705001443719,-834.41243494,0.0003041,2]
[311262778,1705001443728,-500.0,0.0003041,2]
[311262779,1705001443738,-500.0,0.0003041,2]
[311262780,1705001443747,-500.0,0.0003041,2]
[311262782,1705001443756,-205.83409689,0.0003041,2]
[311262784,1705001443765,-500.0,0.0003041,2]
[311262786,1705001443774,-216.46883088,0.0003041,2]
[311262798,1705001443868,-500.0,0.0003041,2]
[311262800,1705001443878,-500.0,0.0003041,2]
[311262802,1705001443887,-507.79952891,0.0003041,2]
[311262804,1705001443896,-500.0,0.0003041,2]
[311262806,1705001443905,-500.0,0.0003041,2]
[311262808,1705001443914,-500.0,0.0003041,2]
[311262810,1705001443924,-306.89,0.0003041,2]
[311262812,1705001443933,-1124.01,0.0003041,2]
[311262814,1705001443942,-500.0,0.0003041,2]
[311262816,1705001443951,-500.0,0.0003041,2]
[311262818,1705001443960,-500.0,0.0003041,2]
[311262820,1705001443970,-438.76690528,0.0003041,2]
[311262822,1705001443979,-500.0,0.0003041,2]
[311262824,1705001443988,-500.0,0.0003041,2]
[311262826,1705001443997,-500.0,0.0003041,2]
[311262828,1705001444006,-13789.34,0.0003041,2]
[311262830,1705001444015,-500.0,0.0003041,2]
[311262832,1705001444024,-500.0,0.0003041,2]
[311262834,1705001444033,-506.98,0.0003041,2]
[311262836,1705001444044,-641.80549609,0.0003041,2]
[311262838,1705001444053,-500.0,0.0003041,2]
[311262840,1705001444063,-538.7,0.0003041,2]
[311262842,1705001444073,-1998.36,0.0003041,2]
[311262844,1705001444082,-3250.53,0.0003041,2]
[311262846,1705001444091,-646.65,0.0003041,2]
[311262848,1705001444101,-911.91,0.0003041,2]
[311262850,1705001444110,-500.0,0.0003041,2]
[311262852,1705001444119,-1423.04,0.0003041,2]
[311262854,1705001444129,-500.0,0.0003041,2]
[311262856,1705001444138,-6811.54,0.0003041,2]
[311262858,1705001444147,-500.0,0.0003041,2]
[311262860,1705001444156,-579.8252146,0.0003041,2]
[311262862,1705001444166,-279.26281635,0.0003041,2]
[311262864,1705001444175,-500.0,0.0003041,2]
[311262865,1705001444185,-232.55111071,0.0003041,2]
[311262867,1705001444193,-500.0,0.0003041,2]
[311262869,1705001444202,-502.15,0.0003041,2]
[311262871,1705001444211,-616.86,0.0003041,2]
[311262873,1705001444220,-500.0,0.0003041,2]
[311262875,1705001444228,-815.58,0.0003041,2]
[311262877,1705001444237,-565.47,0.0003041,2]
[311262879,1705001444247,-1366.5,0.0003041,2]
[311262881,1705001444256,-596.91,0.0003041,2]
[311262883,1705001444265,-525.91,0.0003041,2]
[311262884,1705001444274,-516.0,0.0003041,2]
[311262886,1705001444283,-500.0,0.0003041,2]
[311262889,1705001444293,-2092.2,0.0003041,2]
[311262891,1705001444302,-1151.69,0.0003041,2]
[311262893,1705001444311,-154.09671267,0.00030434,7]
[311262895,1705001444320,-200.0,0.000305,4]
[311262897,1705001444329,-156.73119544,0.0003057,5]
[311262899,1705001444339,-156.73119544,0.0003057,5]
[311262901,1705001444348,-156.73119544,0.0003057,5]
[311262903,1705001444358,-156.73119544,0.0003057,5]
[311262905,1705001444367,-156.73119544,0.0003057,5]
[311262907,1705001444376,-156.73119544,0.0003057,5]
[311262909,1705001444385,-156.73119544,0.0003057,5]
[311262911,1705001444393,-156.73119544,0.0003057,5]
[311262912,1705001444402,-156.73119544,0.0003057,5]
[311262914,1705001444412,-156.73119544,0.0003057,5]
[311262916,1705001444422,-156.73119544,0.0003057,5]
[311262918,1705001444431,-156.73119544,0.0003057,5]
[311262920,1705001444440,-156.73119544,0.0003057,5]
[311262922,1705001444449,-156.73119544,0.0003057,5]
[311262924,1705001444459,-156.73119544,0.0003057,5]
[311262926,1705001444468,-156.73119544,0.0003057,5]
[311262928,1705001444479,-156.73,0.0003057,5]
[311262930,1705001444488,-532.88606449,0.0003057,5]
[311262932,1705001444497,-532.88606449,0.0003057,5]
[311262934,1705001444506,-532.88606449,0.0003057,5]
[311262936,1705001444515,-532.88606449,0.0003057,5]
[311262937,1705001444524,-532.88606449,0.0003057,5]
[311262938,1705001444533,-532.88606449,0.0003057,5]
[311262939,1705001444541,-532.88606449,0.0003057,5]
[311262940,1705001444550,-532.88606449,0.0003057,5]
[311262942,1705001444561,-532.88606449,0.0003057,5]
[311262943,1705001444570,-532.88606449,0.0003057,5]
[311262945,1705001444580,-532.88606449,0.0003057,5]
[311262947,1705001444589,-532.88606449,0.0003057,5]
[311262949,1705001444598,-532.88606449,0.0003057,5]
[311262950,1705001444608,-532.88606449,0.0003057,5]
[311262951,1705001444618,-532.88606449,0.0003057,5]
[311262952,1705001444627,-532.88606449,0.00030624,5]
[311262953,1705001444636,-231.0,0.00030659,7]
[311262954,1705001444645,-192.0,0.0003066,30]
[311262955,1705001444654,-231.0,0.00030669,7]
[311262956,1705001444663,-192.0,0.0003067,30]
[311262957,1705001444672,-8966.0,0.0003067,30]
[311262958,1705001444681,-231.0,0.00030679,7]
[311262959,1705001444690,-192.0,0.0003068,30]
[311262960,1705001444699,-8966.0,0.0003068,30]
[311262961,1705001444708,-658.75,0.00030684,2]
[311262962,1705001444717,-500.0,0.00030684,2]
[311262963,1705001444727,-500.0,0.00030684,2]
[311262964,1705001444736,-500.0,0.00030684,2]
[311262965,1705001444745,-500.0,0.00030684,2]
[311262966,1705001444755,-500.0,0.00030684,2]
[311262967,1705001444764,-500.0,0.00030684,2]
[311262968,1705001444773,-1124.01,0.00030684,2]
[311262969,1705001444782,-500.0,0.00030684,2]
[311262970,1705001444790,-500.0,0.00030684,2]
[311262971,1705001444800,-500.0,0.00030684,2]
[311262972,1705001444809,-500.0,0.00030684,2]
[311262973,1705001444818,-500.0,0.00030684,2]
[311262974,1705001444827,-13789.34,0.00030684,2]
[311262975,1705001444836,-563.46,0.00030684,2]
[311262976,1705001444846,-500.0,0.00030684,2]
[311262977,1705001444856,-506.98,0.00030684,2]
[311262978,1705001444865,-500.0,0.00030684,2]
[311262979,1705001444875,-1998.36,0.00030684,2]
[311262980,1705001444884,-3250.53,0.00030684,2]
[311262981,1705001444893,-646.65,0.00030684,2]
[311262982,1705001444903,-911.91,0.00030684,2]
[311262983,1705001444911,-500.0,0.00030684,2]
[311262984,1705001444921,-1423.04,0.00030684,2]
[311262985,1705001444930,-500.0,0.00030684,2]
[311262986,1705001444939,-6811.54,0.00030684,2]
[311262987,1705001444953,-500.0,0.00030684,2]
[311262988,1705001444962,-500.0,0.00030684,2]
[311262989,1705001444971,-500.0,0.00030684,2]
[311262990,1705001444979,-502.15,0.00030684,2]
[311262991,1705001444988,-616.86,0.00030684,2]
[311262992,1705001444997,-500.0,0.00030684,2]
[311262993,1705001445006,-815.58,0.00030684,2]
[311262994,1705001445016,-565.47,0.00030684,2]
[311262995,1705001445026,-1366.5,0.00030684,2]
[311262996,1705001445037,-596.91,0.00030684,2]
[311262997,1705001445046,-525.91,0.00030684,2]
[311262998,1705001445055,-516.0,0.00030684,2]
[311262999,1705001445064,-425.46131235,0.00030684,2]
[311263000,1705001445073,-2092.2,0.00030684,2]
[311263001,1705001445082,-1151.69,0.00030684,2]
[311263002,1705001445090,-8966.0,0.0003069,30]
[311263003,1705001445099,-151.0,0.0003069,2]
[311263004,1705001445109,-448.0,0.00030746,30]
[311263005,1705001445119,-2844.0,0.00030746,30]
[311263006,1705001445127,-448.0,0.00030756,30]
[311263007,1705001445136,-2844.0,0.00030756,30]
[311263008,1705001445146,-154.09671267,0.00030764,7]
[311263009,1705001445155,-448.0,0.00030766,30]
[311263010,1705001445164,-2844.0,0.00030766,30]
[311263011,1705001445174,-152.31739518,0.00030768,7]
[311263012,1705001445183,-234.853541,0.00030776,2]
[311263013,1705001445193,-210.809608,0.00030776,2]
[311263014,1705001445203,-151.12546,0.00030776,2]
[311263015,1705001445212,-173.184312,0.00030776,2]
[311263016,1705001445222,-173.184313,0.00030776,2]
[311263017,1705001445231,-387.976783,0.00030776,2]
[311263018,1705001445240,-235.111797,0.00030776,2]
[311263019,1705001445249,-183.814307,0.00030776,2]
[311263020,1705001445258,-195.926498,0.00030776,2]
[311263021,1705001445268,-172.475377,0.00030776,2]
[311263022,1705001445277,-155.0,0.000308,2]
[311263023,1705001445287,-620.00000259,0.00030838,2]
[311263024,1705001445296,-164.93506729,0.00030858,2]
[311263025,1705001445305,-222.8,0.00030893,2]
[311263026,1705001445315,-2000.0,0.000309,2]
[311263027,1705001445324,-1500.0,0.000309,2]
[311263028,1705001445333,-2000.0,0.0003091,2]
[311263029,1705001445342,-2000.0,0.0003092,2]
[311263030,1705001445351,-2000.0,0.0003093,2]
[311263031,1705001445360,-2000.0,0.0003094,2]
[311263032,1705001445370,-532.88606449,0.00030943,5]
[311263033,1705001445379,-2000.0,0.0003095,2]
[311263034,1705001445388,-658.75,0.00030958,2]
[311263035,1705001445397,-500.0,0.00030958,2]
[311263036,1705001445406,-500.0,0.00030958,2]
[311263037,1705001445416,-500.0,0.00030958,2]
[311263038,1705001445426,-500.0,0.00030958,2]
[311263039,1705001445435,-500.0,0.00030958,2]
[311263040,1705001445444,-500.0,0.00030958,2]
[311263041,1705001445453,-1124.01,0.00030958,2]
[311263042,1705001445462,-500.0,0.00030958,2]
[311263043,1705001445471,-500.0,0.00030958,2]
[311263044,1705001445480,-500.0,0.00030958,2]
[311263045,1705001445489,-500.0,0.00030958,2]
[311263046,1705001445498,-500.0,0.00030958,2]
[311263047,1705001445507,-13789.34,0.00030958,2]
[311263048,1705001445516,-500.0,0.00030958,2]
[311263049,1705001445525,-506.98,0.00030958,2]
[311263050,1705001445534,-500.0,0.00030958,2]
[311263051,1705001445543,-1998.36,0.00030958,2]
[311263052,1705001445552,-3250.53,0.00030958,2]
[311263053,1705001445561,-646.65,0.00030958,2]
[311263054,1705001445570,-911.91,0.00030958,2]
[311263055,1705001445579,-500.0,0.00030958,2]
[311263056,1705001445588,-1423.04,0.00030958,2]
[311263057,1705001445597,-500.0,0.00030958,2]
[311263058,1705001445606,-6811.54,0.00030958,2]
[311263059,1705001445615,-500.0,0.00030958,2]
[311263060,1705001445624,-500.0,0.00030958,2]
[311263061,1705001445633,-500.0,0.00030958,2]
[311263062,1705001445642,-502.15,0.00030958,2]
[311263063,1705001445653,-616.86,0.00030958,2]
[311263064,1705001445662,-500.0,0.00030958,2]
[311263065,1705001445673,-815.58,0.00030958,2]
[311263066,1705001445683,-565.47,0.00030958,2]
[311263067,1705001445691,-1366.5,0.00030958,2]
[311263068,1705001445700,-596.91,0.00030958,2]
[311263069,1705001445709,-525.91,0.00030958,2]
[311263070,1705001445719,-516.0,0.00030958,2]
[311263071,1705001445728,-2092.2,0.00030958,2]
[311263072,1705001445737,-1151.69,0.00030958,2]
[311263073,1705001445746,-302.294643,0.00030958,2]
[311263074,1705001445754,-302.294643,0.00030958,2]
[311263075,1705001445763,-1586.818294,0.00030958,2]
[311263076,1705001445772,-1586.818294,0.00030958,2]
[311263077,1705001445781,-2000.0,0.0003096,2]
[311263078,1705001445790,-2000.0,0.0003097,2]
[311263079,1705001445799,-2000.0,0.0003098,2]
[311263080,1705001445809,-2000.0,0.0003099,2]
[311263081,1705001445818,-1493.10354236,0.00030992,2]
[311263082,1705001445827,-167.79606204,0.00030992,2]
[311263083,1705001445836,-209.86758848,0.00030992,2]
[311263084,1705001445845,-500.0,0.00030999,120]
[311263085,1705001445854,-500.0,0.00030999,120]
[311263086,1705001445863,-500.0,0.00030999,120]
[311263087,1705001445872,-500.0,0.00030999,120]
[311263088,1705001445882,-500.0,0.00030999,120]
[311263089,1705001445969,-500.0,0.00030999,120]
[311263090,1705001445979,-500.0,0.00030999,120]
[311263091,1705001445988,-500.0,0.00030999,120]
[311263092,1705001445997,-562.12,0.00030999,120]
[311263093,1705001446006,-96855.26836877,0.00031,4]
[311263094,1705001446015,-2000.0,0.00031,2]
[311263095,1705001446025,-1000.0,0.00031,31]
[311263096,1705001446033,-151.0,0.00031,2]
[311263097,1705001446042,-2000.0,0.0003101,2]
[311263098,1705001446051,-2332.039716,0.0003102,2]
[311263099,1705001446061,-151.0,0.00031201,2]
[311263100,1705001446070,-658.75,0.00031232,2]
[311263101,1705001446079,-500.0,0.00031232,2]
[311263102,1705001446088,-500.0,0.00031232,2]
[311263103,1705001446097,-500.0,0.00031232,2]
[311263104,1705001446106,-500.0,0.00031232,2]
[311263105,1705001446115,-500.0,0.00031232,2]
[311263106,1705001446123,-500.0,0.00031232,2]
[311263107,1705001446132,-1124.01,0.00031232,2]
[311263109,1705001446141,-500.0,0.00031232,2]
[311263111,1705001446150,-500.0,0.00031232,2]
[311263113,1705001446159,-500.0,0.00031232,2]
[311263115,1705001446169,-500.0,0.00031232,2]
[311263117,1705001446178,-500.0,0.00031232,2]
[311263119,1705001446187,-13789.34,0.00031232,2]
[311263120,1705001446197,-500.0,0.00031232,2]
[311263122,1705001446206,-506.98,0.00031232,2]
[311263124,1705001446215,-500.0,0.00031232,2]
[311263127,1705001446224,-1998.36,0.00031232,2]
[311263130,1705001446233,-3250.53,0.00031232,2]
[311263132,1705001446243,-646.65,0.00031232,2]
[311263134,1705001446253,-911.91,0.00031232,2]
[311263136,1705001446261,-500.0,0.00031232,2]
[311263138,1705001446271,-1423.04,0.00031232,2]
[311263140,1705001446280,-500.0,0.00031232,2]
[311263142,1705001446290,-6811.54,0.00031232,2]
[311263144,1705001446299,-498.0,0.00031232,2]
[311263146,1705001446308,-500.0,0.00031232,2]
[311263148,1705001446317,-442.97047712,0.00031232,2]
[311263150,1705001446326,-502.15,0.00031232,2]
[311263152,1705001446335,-616.86,0.00031232,2]
[311263153,1705001446345,-815.58,0.00031232,2]
[311263155,1705001446354,-500.0,0.00031232,2]
[311263157,1705001446363,-565.47,0.00031232,2]
[311263159,1705001446373,-1366.5,0.00031232,2]
[311263162,1705001446382,-596.91,0.00031232,2]
[311263163,1705001446391,-525.91,0.00031232,2]
[311263165,1705001446400,-516.0,0.00031232,2]
[311263167,1705001446409,-2092.2,0.00031232,2]
[311263169,1705001446418,-1151.69,0.00031232,2]
[311263170,1705001446428,-302.294643,0.00031232,2]
[311263171,1705001446437,-302.294643,0.00031232,2]
[311263172,1705001446446,-1586.818294,0.00031232,2]
[311263173,1705001446455,-1586.818294,0.00031232,2]
[311263174,1705001446464,-153.0,0.00031233,2]
[311263175,1705001446473,-153.0,0.00031233,2]
[311263176,1705001446483,-153.0,0.00031233,2]
[311263177,1705001446492,-153.0,0.00031233,2]
[311263178,1705001446502,-153.0,0.00031233,2]
[311263179,1705001446511,-153.0,0.00031233,2]
[311263181,1705001446520,-532.88606449,0.00031262,5]
[311263183,1705001446529,-154.09671267,0.00031372,7]
[311263185,1705001446538,-154.09671267,0.00031448,7]
[311263187,1705001446548,-658.75,0.00031506,2]
[311263189,1705001446557,-500.0,0.00031506,2]
[311263190,1705001446566,-500.0,0.00031506,2]
[311263192,1705001446575,-500.0,0.00031506,2]
[311263193,1705001446584,-500.0,0.00031506,2]
[311263195,1705001446593,-500.0,0.00031506,2]
[311263197,1705001446603,-1124.01,0.00031506,2]
[311263198,1705001446612,-431.72125955,0.00031506,2]
[311263200,1705001446621,-331.94751479,0.00031506,2]
[311263201,1705001446629,-500.0,0.00031506,2]
[311263202,1705001446639,-500.0,0.00031506,2]
[311263203,1705001446648,-13789.34,0.00031506,2]
[311263204,1705001446658,-500.0,0.00031506,2]
[311263205,1705001446667,-506.98,0.00031506,2]
[311263206,1705001446677,-500.0,0.00031506,2]
[311263207,1705001446686,-1998.36,0.00031506,2]
[311263208,1705001446695,-3250.53,0.00031506,2]
[311263209,1705001446704,-646.65,0.00031506,2]
[311263210,1705001446713,-911.91,0.00031506,2]
[311263211,1705001446722,-500.0,0.00031506,2]
[311263212,1705001446731,-1423.04,0.00031506,2]
[311263213,1705001446740,-500.0,0.00031506,2]
[311263214,1705001446750,-6811.54,0.00031506,2]
[311263215,1705001446759,-500.0,0.00031506,2]
[311263216,1705001446768,-502.15,0.00031506,2]
[311263217,1705001446777,-616.86,0.00031506,2]
[311263218,1705001446787,-815.58,0.00031506,2]
[311263219,1705001446796,-500.0,0.00031506,2]
[311263220,1705001446807,-565.47,0.00031506,2]
[311263221,1705001446817,-1366.5,0.00031506,2]
[311263222,1705001446827,-596.91,0.00031506,2]
[311263223,1705001446837,-525.91,0.00031506,2]
[311263224,1705001446847,-516.0,0.00031506,2]
[311263225,1705001446857,-2092.2,0.00031506,2]
[311263226,1705001446866,-1151.69,0.00031506,2]
[311263227,1705001446875,-154.09671267,0.00031549,7]
[311263228,1705001446886,-532.88606449,0.00031581,5]
[311263229,1705001446896,-658.75,0.0003178,2]
[311263230,1705001446911,-500.0,0.0003178,2]
[311263231,1705001446927,-500.0,0.0003178,2]
[311263232,1705001446942,-209.42033794,0.0003178,2]
[311263233,1705001446958,-500.0,0.0003178,2]
[311263234,1705001446969,-500.0,0.0003178,2]
[311263235,1705001446981,-1124.01,0.0003178,2]
[311263236,1705001446996,-500.0,0.0003178,2]
[311263237,1705001447010,-500.0,0.0003178,2]
[311263238,1705001447025,-13789.34,0.0003178,2]
[311263239,1705001447038,-500.0,0.0003178,2]
[311263240,1705001447050,-506.98,0.0003178,2]
[311263241,1705001447063,-500.0,0.0003178,2]
[311263242,1705001447075,-1998.36,0.0003178,2]
[311263243,1705001447086,-3250.53,0.0003178,2]
[311263244,1705001447098,-646.65,0.0003178,2]
[311263245,1705001447111,-911.91,0.0003178,2]
[311263246,1705001447125,-500.0,0.0003178,2]
[311263247,1705001447137,-1423.04,0.0003178,2]
[311263248,1705001447148,-500.0,0.0003178,2]
[311263249,1705001447160,-6811.54,0.0003178,2]
[311263250,1705001447175,-500.0,0.0003178,2]
[311263251,1705001447186,-502.15,0.0003178,2]
[311263252,1705001447196,-616.86,0.0003178,2]
[311263253,1705001447207,-815.58,0.0003178,2]
[311263254,1705001447220,-500.0,0.0003178,2]
[311263255,1705001447232,-565.47,0.0003178,2]
[311263256,1705001447246,-1366.5,0.0003178,2]
[311263257,1705001447258,-596.91,0.0003178,2]
[311263258,1705001447269,-525.91,0.0003178,2]
[311263259,1705001447281,-516.0,0.0003178,2]
[311263260,1705001447294,-1601.05372296,0.0003178,2]
[311263261,1705001447427,-491.14627704,0.0003178,2]
[311263262,1705001447438,-276.31283567,0.0003178,2]
[311263263,1705001447614,-200.30750065,0.000198,2]
[311263264,1705001447625,-404.0,0.0003,2]
[311263265,1705001447636,-504.3360633,0.00030136,2]
[311263266,1705001447647,-875.37716433,0.0003178,2]
[311263267,1705001447657,-1212.71544269,0.000318,2]
[311263268,1705001447668,-1212.71544269,0.000318,2]
[311263269,1705001447681,-1000.0,0.0003182,2]
[311263270,1705001447692,-1004.39286936,0.00031849,2]
[311263271,1705001447703,-302.294643,0.000319,2]
[311263272,1705001447714,-302.294643,0.000319,2]
[311263273,1705001447723,-1586.818294,0.000319,2]
[311263274,1705001447732,-1586.818294,0.000319,2]
[311263275,1705001447742,-1500.0,0.000319,2]
[311263276,1705001447751,-532.88,0.000319,5]
[311263277,1705001447760,-214.52011944,0.00031944,2]
[311263278,1705001447769,-151.0,0.00031992,2]
[311263279,1705001447778,-155.50940124,0.00031994,4]
[311263280,1705001447788,-218.21355464,0.00031995,4]
[311263281,1705001447797,-190.96827556,0.00031995,4]
[311263282,1705001447807,-309.61300308,0.00031997,4]
[311263283,1705001447816,-383.0709397,0.00031997,4]
[311263284,1705001447825,-309.16953134,0.00031998,4]
[311263285,1705001447834,-585.54982759,0.00031998,4]
[311263286,1705001447843,-155.11478319,0.00031998,4]
[311263287,1705001447853,-151.0,0.00031999,2]
[311263288,1705001447862,-500.0,0.00031999,2]
[311263289,1705001447872,-13278.22129552,0.00031999,2]
[311263290,1705001447888,-3332.76467176,0.00031999,2]
[311263291,1705001447899,-27414.98436479,0.00031999,2]
[311263313,1705002258412,1051.21541603,0.0002,7]
[311263327,1705002325046,201.924639,0.00014666,2]
[311263328,1705002339226,169.9529526,0.00015016,2]
[311263334,1705002372419,733.40054285,0.00015016,2]
[311263335,1705002374951,182.50978617,0.00015016,2]
[311263343,1705002388412,733.40054285,0.00015016,2]
[311263355,1705002406427,733.40054285,0.00015016,2]
[311263356,1705002411474,265.53842,0.00014586,2]
[311263357,1705002420643,733.40054285,0.00015016,2]
[311263362,1705002438436,733.40054285,0.00014586,2]
[311263363,1705002440207,250.0,0.00014559,2]
[311263365,1705002445989,4589.13944798,0.00014586,2]
[311263366,1705002446018,6711.61740263,0.00014586,2]
[311263367,1705002451301,155.07288426,0.00015,2]
[311263368,1705002451394,3133.30971311,0.00014585,2]